[Event "Netanya Open 2019"]
[Site "Netanya"]
[Date "2019.06.26"]
[Round "4.2"]
[White "Svetushkin, Dmitry"]
[Black "Zubov, Alexander"]
[Result "1-0"]
[ECO "B51"]
[WhiteElo "2532"]
[BlackElo "2597"]
[Annotator "ChessBase"]
[PlyCount "141"]
[EventDate "2019.06.23"]
[EventType "swiss"]
[EventCountry "ISR"]
[SourceTitle "playchess.com"]
[Source "ChessBase"]
[SourceQuality "1"]
[TimeControl "40/5400+30:1800+30"]

1. e4 {[%emt 0:00:00]} c5 {[%emt 0:00:00]} 2. Nf3 {[%emt 0:00:12]} d6 {[%emt 0:00:00]} 3. Bb5+ {[%emt 0:00:09]} Nd7 {[%emt 0:00:48]} 4. c3 {[%emt 0:00:10]} Ngf6 {[%emt 0:01:05]} 5. Bd3 {[%emt 0:00:12]} g6 {[%emt 0:03:52]} 6. Bc2 {[%emt 0:03:52]} Bg7 {[%emt 0:04:23]} 7. d4 {[%emt 0:00:36]} O-O {[%emt 0:00:23]} 8. O-O {[%emt 0:00:23]} Qc7 {[%emt 0:04:03]} 9. a4 {[%emt 0:11:37]} b6 {[%emt 0:01:03]} 10. Re1 {[%emt 0:02:41]} Bb7 {[%emt 0:01:39]} 11. Na3 {[%emt 0:00:20]} a6 {[%emt 0:01:57]} 12. Qe2 {[%emt 0:02:16]} e6 {[%emt 0:08:59]} 13. h3 {[%emt 0:02:54]} Rfe8 {[%emt 0:03:43]} 14. Bd2 {[%emt 0:04:04]} Nh5 {[%emt 0:08:54]} 15. g4 {[%emt 0:10:03]} Nhf6 {[%emt 0:00:33]} 16. Nh2 {[%emt 0:00:38]} cxd4 {[%emt 0:10:05]} 17. cxd4 {[%emt 0:01:06]} Nb8 {[%emt 0:00:03]} 18. Rac1 {[%emt 0:11:55]} Nc6 {[%emt 0:01:07]} 19. Nf3 {[%emt 0:01:44]} h5 {[%emt 0:06:07]} 20. g5 {[%emt 0:02:33]} Nd7 {[%emt 0:00:25]} 21. Bb1 {[%emt 0:07:22]} Qb8 {[%emt 0:08:15]} 22. Be3 {[%emt 0:01:08]} e5 {[%emt 0:01:04]} 23. d5 {[%emt 0:07:18]} Nd4 {[%emt 0:02:28]} 24. Qd1 {[%emt 0:02:24]} Qd8 {[%emt 0:01:31]} 25. Nc4 {[%emt 0:02:06]} Nc5 {[%emt 0:01:13]} 26. Nxd4 {[%emt 0:02:05]} exd4 {[%emt 0:00:04]} 27. Bf4 {[%emt 0:00:04]} Be5 {[%emt 0:01:30]} 28. Nxe5 {[%emt 0:04:25]} dxe5 {[%emt 0:00:23]} 29. Bd2 {[%emt 0:00:03]} Qd7 {[%emt 0:04:58]} 30. Kh2 {[%emt 0:01:03]} Nxa4 {[%emt 0:04:49]} 31. f4 {[%emt 0:00:31]} Nxb2 {[%emt 0:02:55]} 32. Qb3 {[%emt 0:05:31]} Qb5 {[%emt 0:03:40]} 33. Qg3 {[%emt 0:00:09]} Rac8 {[%emt 0:04:03]} 34. fxe5 {[%emt 0:01:06]} Rxc1 {[%emt 0:01:32]} 35. Bxc1 {[%emt 0:02:24]} Nc4 {[%emt 0:00:47]} 36. Bd3 {[%emt 0:00:30]} Qc5 {[%emt 0:00:34]} 37. Bxc4 {[%emt 0:04:01]} Qxc4 {[%emt 0:00:08]} 38. Qf4 {[%emt 0:01:31]} Qc7 {[%emt 0:01:30]} 39. Bb2 {[%emt 0:01:50]} Qxe5 {[%emt 0:07:27]} 40. Qxe5 {[%emt 0:00:06]} Rxe5 {[%emt 0:00:01]} 41. Bxd4 {[%emt 0:30:18]} Re8 {[%emt 0:31:48]} 42. d6 {[%emt 0:00:00]} Rd8 {[%emt 0:00:00]} 43. e5 {[%emt 0:00:00]} b5 {[%emt 0:00:00]} 44. Bb6 {[%emt 0:00:00]} Rd7 {[%emt 0:00:00]} 45. Kg3 {[%emt 0:00:00]} Kf8 {[%emt 0:00:00]} 46. Kf4 {[%emt 0:00:00]} Ke8 {[%emt 0:00:00]} 47. Rc1 {[%emt 0:00:00]} b4 {[%emt 0:00:00]} 48. Ke3 {[%emt 0:00:00]} b3 {[%emt 0:00:00]} 49. Kd4 {[%emt 0:00:00]} b2 {[%emt 0:00:00]} 50. Rb1 {[%emt 0:00:00]} Bc8 {[%emt 0:00:00]} 51. Bc7 {[%emt 0:00:00]} Rxc7 {[%emt 0:00:00]} 52. dxc7 {[%emt 0:00:00]} Kd7 {[%emt 0:00:00]} 53. e6+ {[%emt 0:00:00]} Kxe6 {[%emt 0:00:00]} 54. Rxb2 {[%emt 0:00:00]} Kd6 {[%emt 0:00:00]} 55. Rf2 {[%emt 0:00:39]} Bxh3 {[%emt 0:00:00]} 56. Rxf7 {[%emt 0:00:08]} a5 {[%emt 0:00:00]} 57. Rf6+ {[%emt 0:00:39]} Kxc7 {[%emt 0:00:00]} 58. Rxg6 {[%emt 0:00:05]} Kd7 {[%emt 0:02:02]} 59. Ke5 {[%emt 0:01:34]} Bf1 {[%emt 0:00:06]} 60. Rg7+ {[%emt 0:04:29]} Kc6 {[%emt 0:00:07]} 61. g6 {[%emt 0:00:10]} Bc4 {[%emt 0:02:19]} 62. Ra7 {[%emt 0:02:43]} Kb5 {[%emt 0:01:33]} 63. Kd4 {[%emt 0:00:32]} Ba2 {[%emt 0:01:08]} 64. g7 {[%emt 0:00:39]} Kb4 {[%emt 0:00:32]} 65. Rb7+ {[%emt 0:00:45]} Ka3 {[%emt 0:00:05]} 66. Kc3 {[%emt 0:00:44]} h4 {[%emt 0:01:05]} 67. Rb8 {[%emt 0:00:22]} h3 {[%emt 0:00:07]} 68. g8=Q {[%emt 0:00:47]} Bxg8 {[%emt 0:00:04]} 69. Rxg8 {[%emt 0:00:04]} h2 {[%emt 0:00:31]} 70. Rh8 {[%emt 0:00:09]} a4 {[%emt 0:00:06]} 71. Rh4 {[%emt 0:00:19]} 1-0

[Event "Netanya Open 2019"]
[Site "Netanya"]
[Date "2019.06.26"]
[Round "4.3"]
[White "Grinberg, Eyal"]
[Black "Antipov, Mikhail Al."]
[Result "0-1"]
[ECO "B36"]
[WhiteElo "2474"]
[BlackElo "2582"]
[Annotator "ChessBase"]
[PlyCount "84"]
[EventDate "2019.06.23"]
[EventType "swiss"]
[EventCountry "ISR"]
[SourceTitle "playchess.com"]
[Source "ChessBase"]
[SourceQuality "1"]
[TimeControl "40/5400+30:1800+30"]

1. e4 {[%emt 0:00:00]} c5 {[%emt 0:00:00]} 2. Nf3 {[%emt 0:00:00]} Nc6 {[%emt 0:00:00]} 3. d4 {[%emt 0:00:00]} cxd4 {[%emt 0:00:00]} 4. Nxd4 {[%emt 0:00:00]} g6 {[%emt 0:00:00]} 5. c4 {[%emt 0:00:58]} d6 {[%emt 0:00:14]} 6. Nc3 {[%emt 0:01:45]} Nf6 {[%emt 0:00:08]} 7. Be2 {[%emt 0:05:00]} Nxd4 {[%emt 0:00:06]} 8. Qxd4 {[%emt 0:00:05]} Bg7 {[%emt 0:00:06]} 9. Be3 {[%emt 0:01:28]} O-O {[%emt 0:00:10]} 10. Qd2 {[%emt 0:00:09]} a5 {[%emt 0:00:05]} 11. f3 {[%emt 0:07:47]} a4 {[%emt 0:00:07]} 12. Rb1 {[%emt 0:06:35]} Be6 {[%emt 0:01:56]} 13. Nb5 {[%emt 0:11:36]} Nd7 {[%emt 0:03:11]} 14. Nd4 {[%emt 0:03:39]} Qa5 {[%emt 0:05:06]} 15. Qxa5 {[%emt 0:02:38]} Rxa5 {[%emt 0:00:05]} 16. O-O {[%emt 0:01:08]} h5 {[%emt 0:02:28]} 17. Rfc1 {[%emt 0:05:37]} Rc8 {[%emt 0:04:01]} 18. Kf2 {[%emt 0:08:08]} Nc5 {[%emt 0:07:00]} 19. Rc2 {[%emt 0:04:31]} Raa8 {[%emt 0:19:08]} 20. Rbc1 {[%emt 0:12:55]} Bd7 {[%emt 0:07:27]} 21. Kf1 {[%emt 0:03:30]} Na6 {[%emt 0:11:18]} 22. Rd2 {[%emt 0:04:40]} Nb4 {[%emt 0:08:15]} 23. a3 {[%emt 0:02:14]} Na6 {[%emt 0:00:17]} 24. b4 {[%emt 0:03:26]} axb3 {[%emt 0:00:48]} 25. Nxb3 {[%emt 0:00:05]} Be6 {[%emt 0:08:19]} 26. Nd4 {[%emt 0:03:10]} Nc5 {[%emt 0:00:06]} 27. Rb1 {[%emt 0:04:55]} Rxa3 {[%emt 0:01:25]} 28. Nxe6 {[%emt 0:01:24]} Nxe6 {[%emt 0:00:06]} 29. Bf2 {[%emt 0:01:13]} Ra1 {[%emt 0:05:49]} 30. Rdd1 {[%emt 0:01:28]} Rca8 {[%emt 0:01:34]} 31. Rxb7 {[%emt 0:03:30]} Rxd1+ {[%emt 0:00:05]} 32. Bxd1 {[%emt 0:00:03]} Ra1 {[%emt 0:00:07]} 33. Ke2 {[%emt 0:00:07]} Nf4+ {[%emt 0:00:20]} 34. Kd2 {[%emt 0:00:07]} Nxg2 {[%emt 0:00:19]} 35. Bb3 {[%emt 0:02:12]} Rb1 {[%emt 0:00:22]} 36. c5 {[%emt 0:00:50]} Rb2+ {[%emt 0:00:09]} 37. Kd1 {[%emt 0:00:55]} Rxf2 {[%emt 0:02:20]} 38. c6 {[%emt 0:00:04]} Ne3+ {[%emt 0:00:19]} 39. Kc1 {[%emt 0:00:41]} Bc3 {[%emt 0:00:07]} 40. Bc4 {[%emt 0:00:50]} Rxh2 {[%emt 0:00:18]} 41. Kb1 {[%emt 0:30:34]} Nxc4 {[%emt 0:30:19]} 42. c7 {[%emt 0:00:31]} Na3+ {[%emt 0:00:05]} 0-1

[Event "Netanya Open 2019"]
[Site "Netanya"]
[Date "2019.06.26"]
[Round "4.8"]
[White "Flom, Gabriel"]
[Black "Sivuk, Vitaly"]
[Result "1/2-1/2"]
[ECO "E48"]
[WhiteElo "2480"]
[BlackElo "2547"]
[Annotator "ChessBase"]
[PlyCount "117"]
[EventDate "2019.06.23"]
[EventType "swiss"]
[EventCountry "ISR"]
[SourceTitle "playchess.com"]
[Source "ChessBase"]
[SourceQuality "1"]
[TimeControl "40/5400+30:1800+30"]

1. d4 {[%emt 0:02:19]} Nf6 {[%emt 0:00:00]} 2. c4 {[%emt 0:00:03]} e6 {[%emt 0:00:00]} 3. Nc3 {[%emt 0:00:05]} Bb4 {[%emt 0:00:02]} 4. e3 {[%emt 0:00:13]} O-O {[%emt 0:00:16]} 5. Bd3 {[%emt 0:00:28]} c5 {[%emt 0:00:17]} 6. Nge2 {[%emt 0:02:14]} d5 {[%emt 0:00:27]} 7. cxd5 {[%emt 0:00:35]} cxd4 {[%emt 0:04:27]} 8. exd4 {[%emt 0:00:10]} Qxd5 {[%emt 0:04:24]} 9. O-O {[%emt 0:00:20]} Qh5 {[%emt 0:00:07]} 10. a3 {[%emt 0:12:06]} Bd6 {[%emt 0:10:11]} 11. Bf4 {[%emt 0:00:49]} Bxf4 {[%emt 0:00:24]} 12. Nxf4 {[%emt 0:00:02]} Qh6 {[%emt 0:00:31]} 13. Qc1 {[%emt 0:10:30]} Rd8 {[%emt 0:05:04]} 14. d5 {[%emt 0:00:52]} e5 {[%emt 0:19:04]} 15. Nfe2 {[%emt 0:00:35]} Qxc1 {[%emt 0:01:09]} 16. Raxc1 {[%emt 0:00:03]} Nbd7 {[%emt 0:00:19]} 17. Rfd1 {[%emt 0:06:27]} Nb6 {[%emt 0:01:28]} 18. d6 {[%emt 0:00:03]} Be6 {[%emt 0:11:45]} 19. Ne4 {[%emt 0:07:12]} Nxe4 {[%emt 0:02:54]} 20. Bxe4 {[%emt 0:00:01]} Nc4 {[%emt 0:00:48]} 21. d7 {[%emt 0:08:40]} Nxb2 {[%emt 0:04:05]} 22. Rd6 {[%emt 0:00:05]} Rxd7 {[%emt 0:02:30]} 23. Rxd7 {[%emt 0:00:06]} Bxd7 {[%emt 0:00:05]} 24. Bxb7 {[%emt 0:00:12]} Rb8 {[%emt 0:00:40]} 25. Rc7 {[%emt 0:00:55]} Be6 {[%emt 0:07:23]} 26. f4 {[%emt 0:03:47]} Bc4 {[%emt 0:06:19]} 27. Kf2 {[%emt 0:02:55]} exf4 {[%emt 0:04:22]} 28. Nxf4 {[%emt 0:00:15]} g6 {[%emt 0:05:22]} 29. Ke3 {[%emt 0:03:14]} Rd8 {[%emt 0:02:05]} 30. h4 {[%emt 0:00:38]} a5 {[%emt 0:02:24]} 31. g4 {[%emt 0:01:31]} Bb3 {[%emt 0:00:34]} 32. Ba6 {[%emt 0:01:54]} Nd1+ {[%emt 0:01:32]} 33. Kf3 {[%emt 0:00:16]} Re8 {[%emt 0:00:17]} 34. g5 {[%emt 0:01:25]} Ne3 {[%emt 0:01:14]} 35. Bd3 {[%emt 0:03:35]} Nd5 {[%emt 0:01:28]} 36. Nxd5 {[%emt 0:00:34]} Bxd5+ {[%emt 0:00:05]} 37. Kf4 {[%emt 0:00:02]} a4 {[%emt 0:02:28]} 38. Rc5 {[%emt 0:01:51]} Bb3 {[%emt 0:00:12]} 39. Bc4 {[%emt 0:03:16]} Re1 {[%emt 0:00:49]} 40. Bxb3 {[%emt 0:00:12]} axb3 {[%emt 0:00:04]} 41. Rb5 {[%emt 0:30:02]} Rb1 {[%emt 0:30:09]} 42. Kg3 {[%emt 0:00:11]} h6 {[%emt 0:00:00]} 43. a4 {[%emt 0:00:00]} hxg5 {[%emt 0:00:00]} 44. hxg5 {[%emt 0:00:00]} b2 {[%emt 0:00:00]} 45. Rb8+ {[%emt 0:00:00]} Kg7 {[%emt 0:00:00]} 46. Kh2 {[%emt 0:00:00]} Kh7 {[%emt 0:00:00]} 47. Rb7 {[%emt 0:00:00]} Kg8 {[%emt 0:00:00]} 48. Rb8+ {[%emt 0:00:00]} Kg7 {[%emt 0:00:00]} 49. a5 {[%emt 0:00:00]} Ra1 {[%emt 0:00:00]} 50. Rxb2 {[%emt 0:00:00]} Rxa5 {[%emt 0:00:00]} 51. Rg2 {[%emt 0:00:00]} Kf8 {[%emt 0:00:00]} 52. Kh3 {[%emt 0:00:00]} Ke7 {[%emt 0:00:00]} 53. Re2+ {[%emt 0:00:00]} Kd6 {[%emt 0:00:00]} 54. Kg4 {[%emt 0:00:00]} Re5 {[%emt 0:00:00]} 55. Rf2 {[%emt 0:00:00]} Re4+ {[%emt 0:00:00]} 56. Kg3 {[%emt 0:00:00]} Ke6 {[%emt 0:00:00]} 57. Rf6+ {[%emt 0:00:00]} Ke7 {[%emt 0:00:00]} 58. Ra6 {[%emt 0:00:00]} Re1 {[%emt 0:00:00]} 59. Kg4 {[%emt 0:00:00]} 1/2-1/2

[Event "Netanya Open 2019"]
[Site "Netanya"]
[Date "2019.06.26"]
[Round "4.9"]
[White "Erenberg, Ariel"]
[Black "Kogan, Arthur"]
[Result "1/2-1/2"]
[ECO "E11"]
[WhiteElo "2434"]
[BlackElo "2535"]
[Annotator "ChessBase"]
[PlyCount "71"]
[EventDate "2019.06.23"]
[EventType "swiss"]
[EventCountry "ISR"]
[SourceTitle "playchess.com"]
[Source "ChessBase"]
[SourceQuality "1"]
[TimeControl "40/5400+30:1800+30"]

1. d4 {[%emt 0:00:00]} Nf6 {[%emt 0:00:00]} 2. c4 {[%emt 0:00:00]} e6 {[%emt 0:00:30]} 3. Nf3 {[%emt 0:00:29]} Bb4+ {[%emt 0:00:28]} 4. Bd2 {[%emt 0:01:18]} c5 {[%emt 0:02:44]} 5. Bxb4 {[%emt 0:00:57]} cxb4 {[%emt 0:01:09]} 6. g3 {[%emt 0:00:34]} O-O {[%emt 0:00:38]} 7. Bg2 {[%emt 0:00:08]} a5 {[%emt 0:01:41]} 8. a3 {[%emt 0:05:37]} Na6 {[%emt 0:01:27]} 9. O-O {[%emt 0:02:06]} d6 {[%emt 0:03:53]} 10. axb4 {[%emt 0:11:56]} Nxb4 {[%emt 0:00:51]} 11. Nc3 {[%emt 0:00:49]} Qe7 {[%emt 0:07:06]} 12. e4 {[%emt 0:12:58]} e5 {[%emt 0:09:33]} 13. h3 {[%emt 0:09:51]} b6 {[%emt 0:07:45]} 14. Re1 {[%emt 0:05:32]} Ba6 {[%emt 0:03:22]} 15. b3 {[%emt 0:03:26]} Nd7 {[%emt 0:07:00]} 16. Qd2 {[%emt 0:09:03]} Rad8 {[%emt 0:05:28]} 17. Nd5 {[%emt 0:06:47]} Nxd5 {[%emt 0:00:57]} 18. exd5 {[%emt 0:00:21]} Qf6 {[%emt 0:08:20]} 19. b4 {[%emt 0:05:52]} Bxc4 {[%emt 0:04:54]} 20. bxa5 {[%emt 0:00:20]} bxa5 {[%emt 0:12:28]} 21. dxe5 {[%emt 0:00:37]} dxe5 {[%emt 0:01:36]} 22. Rxa5 {[%emt 0:00:51]} Rfe8 {[%emt 0:01:57]} 23. d6 {[%emt 0:04:42]} h6 {[%emt 0:04:04]} 24. Re4 {[%emt 0:00:05]} Rc8 {[%emt 0:04:22]} 25. Ra7 {[%emt 0:00:50]} Bb5 {[%emt 0:00:09]} 26. Rc7 {[%emt 0:01:48]} Rb8 {[%emt 0:03:30]} 27. Kh2 {[%emt 0:11:08]} Rb6 {[%emt 0:01:38]} 28. Qc3 {[%emt 0:03:43]} Rxd6 {[%emt 0:02:38]} 29. Re3 {[%emt 0:01:29]} e4 {[%emt 0:01:30]} 30. Rc8 {[%emt 0:00:32]} Rf8 {[%emt 0:02:25]} 31. Rxf8+ {[%emt 0:00:55]} Nxf8 {[%emt 0:00:07]} 32. Qxf6 {[%emt 0:00:03]} Rxf6 {[%emt 0:00:18]} 33. Rxe4 {[%emt 0:00:01]} Bc6 {[%emt 0:00:24]} 34. Re3 {[%emt 0:00:03]} Rd6 {[%emt 0:01:05]} 35. Ne5 {[%emt 0:00:27]} Bxg2 {[%emt 0:00:11]} 36. Kxg2 {[%emt 0:00:04]} 1/2-1/2

[Event "Netanya Open 2019"]
[Site "Netanya"]
[Date "2019.06.26"]
[Round "4.10"]
[White "Dvoirys, Semen I."]
[Black "Emanuel, Yahav"]
[Result "1-0"]
[ECO "C95"]
[WhiteElo "2502"]
[BlackElo "2359"]
[Annotator "ChessBase"]
[PlyCount "87"]
[EventDate "2019.06.23"]
[EventType "swiss"]
[EventCountry "ISR"]
[SourceTitle "playchess.com"]
[Source "ChessBase"]
[SourceQuality "1"]
[TimeControl "40/5400+30:1800+30"]

1. e4 {[%emt 1:30:30]} e5 {[%emt 0:06:45]} 2. Nf3 {[%emt 0:00:00]} Nc6 {[%emt 0:00:09]} 3. Bb5 {[%emt 0:00:00]} a6 {[%emt 0:00:09]} 4. Ba4 {[%emt 0:00:00]} Nf6 {[%emt 0:00:17]} 5. O-O {[%emt 0:00:00]} Be7 {[%emt 0:00:20]} 6. Re1 {[%emt 0:00:00]} b5 {[%emt 0:00:01]} 7. Bb3 {[%emt 0:00:00]} d6 {[%emt 0:00:11]} 8. c3 {[%emt 0:00:00]} O-O {[%emt 0:00:11]} 9. h3 {[%emt 0:00:00]} Nb8 {[%emt 0:00:11]} 10. d4 {[%emt 0:00:00]} Nbd7 {[%emt 0:00:06]} 11. Nbd2 {[%emt 0:00:00]} Bb7 {[%emt 0:00:13]} 12. Bc2 {[%emt 0:00:00]} Re8 {[%emt 0:00:20]} 13. Nf1 {[%emt 0:00:00]} Bf8 {[%emt 0:00:10]} 14. Ng3 {[%emt 0:00:00]} g6 {[%emt 0:00:09]} 15. a4 {[%emt 0:00:00]} c5 {[%emt 0:00:15]} 16. d5 {[%emt 0:00:00]} c4 {[%emt 0:00:06]} 17. Bg5 {[%emt 0:00:00]} h6 {[%emt 0:00:43]} 18. Be3 {[%emt 0:00:00]} Nc5 {[%emt 0:00:19]} 19. Qd2 {[%emt 0:00:00]} h5 {[%emt 0:00:13]} 20. Ng5 {[%emt 0:00:00]} Bg7 {[%emt 0:19:07]} 21. f4 {[%emt 0:00:00]} exf4 {[%emt 0:04:35]} 22. Bxf4 {[%emt 0:00:00]} Qe7 {[%emt 0:14:18]} 23. Qf2 {[%emt 0:00:00]} Nfd7 {[%emt 0:05:06]} 24. Nf3 {[%emt 0:00:00]} Ne5 {[%emt 0:12:56]} 25. Nxe5 {[%emt 0:00:00]} Bxe5 {[%emt 0:00:30]} 26. Bxe5 {[%emt 0:00:00]} Qxe5 {[%emt 0:03:00]} 27. Nf1 {[%emt 0:00:00]} Rac8 {[%emt 0:05:37]} 28. Nd2 {[%emt 0:00:00]} Qe7 {[%emt 0:09:21]} 29. Rf1 {[%emt 0:00:00]} Rc7 {[%emt 0:05:06]} 30. axb5 {[%emt 0:00:00]} axb5 {[%emt 0:00:01]} 31. Nf3 {[%emt 0:00:00]} Ra8 {[%emt 0:06:15]} 32. Rae1 {[%emt 0:00:00]} Nd7 {[%emt 0:01:29]} 33. Nd4 {[%emt 0:00:00]} Ba6 {[%emt 0:03:39]} 34. Nc6 {[%emt 0:00:00]} Qe8 {[%emt 0:00:59]} 35. Qg3 {[%emt 0:02:46]} Ne5 {[%emt 0:00:38]} 36. Rf6 {[%emt 0:04:05]} Nxc6 {[%emt 0:02:13]} 37. Qxd6 {[%emt 0:02:12]} Rac8 {[%emt 0:01:31]} 38. Qf4 {[%emt 0:00:16]} Bb7 {[%emt 0:00:47]} 39. e5 {[%emt 0:01:00]} Re7 {[%emt 0:00:58]} 40. e6 {[%emt 0:00:30]} Kg7 {[%emt 0:00:28]} 41. Rf1 {[%emt 0:31:48]} Rcc7 {[%emt 0:14:20]} 42. exf7 {[%emt 0:00:00]} Rxf7 {[%emt 0:00:05]} 43. Rxg6+ {[%emt 0:00:00]} Kh8 {[%emt 0:00:55]} 44. Qh6+ {[%emt 0:00:00]} 1-0

[Event "Netanya Open 2019"]
[Site "Netanya"]
[Date "2019.06.26"]
[Round "4.12"]
[White "Musyuk, Lior"]
[Black "Khmelniker, Ilya"]
[Result "0-1"]
[ECO "C56"]
[WhiteElo "2190"]
[BlackElo "2483"]
[Annotator "ChessBase"]
[PlyCount "82"]
[EventDate "2019.06.23"]
[EventType "swiss"]
[EventCountry "ISR"]
[SourceTitle "playchess.com"]
[Source "ChessBase"]
[SourceQuality "1"]
[TimeControl "40/5400+30:1800+30"]

1. e4 {[%emt 0:00:00]} e5 {[%emt 0:07:00]} 2. Nf3 {[%emt 0:00:00]} Nc6 {[%emt 0:00:06]} 3. d4 {[%emt 0:00:08]} exd4 {[%emt 0:00:06]} 4. Bc4 {[%emt 0:00:10]} Nf6 {[%emt 0:00:07]} 5. e5 {[%emt 0:00:11]} d5 {[%emt 0:00:07]} 6. Bb5 {[%emt 0:00:12]} Nd7 {[%emt 0:00:05]} 7. O-O {[%emt 0:00:33]} Be7 {[%emt 0:00:45]} 8. Bxc6 {[%emt 0:00:11]} bxc6 {[%emt 0:00:05]} 9. Nxd4 {[%emt 0:00:08]} Nb8 {[%emt 0:00:05]} 10. c4 {[%emt 0:00:45]} O-O {[%emt 0:10:15]} 11. Qf3 {[%emt 0:01:16]} dxc4 {[%emt 0:19:11]} 12. Rd1 {[%emt 0:14:49]} Qd5 {[%emt 0:01:47]} 13. Qg3 {[%emt 0:01:57]} Qe4 {[%emt 0:00:53]} 14. Bf4 {[%emt 0:08:27]} c5 {[%emt 0:25:18]} 15. Nb5 {[%emt 0:11:10]} Na6 {[%emt 0:02:26]} 16. N1c3 {[%emt 0:11:42]} Qg6 {[%emt 0:01:51]} 17. Nd5 {[%emt 0:01:27]} Bd8 {[%emt 0:00:05]} 18. Na3 {[%emt 0:01:44]} Be6 {[%emt 0:06:42]} 19. Nxc4 {[%emt 0:03:09]} c6 {[%emt 0:00:09]} 20. Nde3 {[%emt 0:00:52]} Qh5 {[%emt 0:00:33]} 21. Qf3 {[%emt 0:06:14]} Qxf3 {[%emt 0:00:19]} 22. gxf3 {[%emt 0:00:01]} Nb4 {[%emt 0:00:17]} 23. a3 {[%emt 0:01:47]} Nd5 {[%emt 0:00:19]} 24. Bg3 {[%emt 0:00:54]} h5 {[%emt 0:01:11]} 25. h4 {[%emt 0:01:11]} Rb8 {[%emt 0:13:55]} 26. f4 {[%emt 0:04:01]} g6 {[%emt 0:01:31]} 27. Rac1 {[%emt 0:03:30]} Rb3 {[%emt 0:00:18]} 28. Rd2 {[%emt 0:03:10]} Bc7 {[%emt 0:00:54]} 29. Nd6 {[%emt 0:02:51]} Nxe3 {[%emt 0:01:45]} 30. fxe3 {[%emt 0:00:13]} Rxe3 {[%emt 0:00:27]} 31. Bf2 {[%emt 0:01:28]} Rf3 {[%emt 0:00:05]} 32. Rxc5 {[%emt 0:01:49]} Rxf4 {[%emt 0:04:03]} 33. Rxc6 {[%emt 0:01:36]} Bd8 {[%emt 0:00:00]} 34. Bxa7 {[%emt 0:04:11]} Bxh4 {[%emt 0:01:12]} 35. b4 {[%emt 0:02:05]} Rg4+ {[%emt 0:00:14]} 36. Kf1 {[%emt 0:01:42]} f6 {[%emt 0:00:42]} 37. Ke2 {[%emt 0:04:50]} fxe5 {[%emt 0:00:28]} 38. Nf7 {[%emt 0:01:52]} Bxf7 {[%emt 0:01:02]} 39. b5 {[%emt 0:01:13]} Bc4+ {[%emt 0:00:33]} 40. Kd1 {[%emt 0:00:22]} Bxb5 {[%emt 0:00:22]} 41. Rxg6+ {[%emt 0:30:35]} Rxg6 {[%emt 0:30:07]} 0-1

[Event "Netanya Open 2019"]
[Site "Netanya"]
[Date "2019.06.26"]
[Round "4.15"]
[White "Rozentalis, Eduardas"]
[Black "Gorodetzky, Matan"]
[Result "1-0"]
[ECO "C07"]
[WhiteElo "2540"]
[BlackElo "2303"]
[Annotator "ChessBase"]
[PlyCount "55"]
[EventDate "2019.06.23"]
[EventType "swiss"]
[EventCountry "ISR"]
[SourceTitle "playchess.com"]
[Source "ChessBase"]
[SourceQuality "1"]
[TimeControl "40/5400+30:1800+30"]

1. e4 {[%emt 0:00:00]} e6 {[%emt 0:00:15]} 2. d4 {[%emt 0:00:00]} d5 {[%emt 0:00:05]} 3. Nd2 {[%emt 0:00:01]} c5 {[%emt 0:00:10]} 4. Ngf3 {[%emt 0:00:23]} a6 {[%emt 0:00:12]} 5. Bd3 {[%emt 0:01:18]} Nc6 {[%emt 0:17:11]} 6. exd5 {[%emt 0:00:44]} exd5 {[%emt 0:01:45]} 7. O-O {[%emt 0:00:13]} c4 {[%emt 0:02:47]} 8. Re1+ {[%emt 0:01:42]} Be7 {[%emt 0:00:32]} 9. Bf1 {[%emt 0:00:29]} Nf6 {[%emt 1:11:33]} 10. c3 {[%emt 0:03:19]} O-O {[%emt 0:00:00]} 11. Ne5 {[%emt 0:00:45]} Re8 {[%emt 0:00:00]} 12. g3 {[%emt 0:05:37]} Bd6 {[%emt 0:00:00]} 13. f4 {[%emt 0:02:49]} Qb6 {[%emt 0:00:00]} 14. Ndf3 {[%emt 0:02:22]} Bf5 {[%emt 0:00:00]} 15. Bg2 {[%emt 0:06:21]} h6 {[%emt 0:00:00]} 16. h3 {[%emt 0:12:28]} Bxe5 {[%emt 0:00:00]} 17. fxe5 {[%emt 0:04:19]} Ne4 {[%emt 0:00:00]} 18. Nh4 {[%emt 0:04:12]} Bh7 {[%emt 0:00:00]} 19. Kh2 {[%emt 0:00:37]} Ne7 {[%emt 0:00:00]} 20. Rf1 {[%emt 0:05:56]} Rf8 {[%emt 0:00:00]} 21. Qe2 {[%emt 0:10:18]} g5 {[%emt 0:00:00]} 22. Bxe4 {[%emt 0:03:02]} Bxe4 {[%emt 0:00:00]} 23. Rf6 {[%emt 0:00:04]} Qd8 {[%emt 0:00:00]} 24. Rxh6 {[%emt 0:05:35]} Bg6 {[%emt 0:04:54]} 25. Bxg5 {[%emt 0:01:07]} Kg7 {[%emt 0:00:06]} 26. Qe3 {[%emt 0:04:25]} Rg8 {[%emt 0:00:17]} 27. Bf6+ {[%emt 0:00:28]} Kf8 {[%emt 0:00:05]} 28. Nxg6+ {[%emt 0:00:17]} 1-0